fUSD/lending_fUSD_20240423
["ID","MTS","AMOUNT","RATE_DAILY","PERIOD"]
[323262373,1713856255921,-500.0,0.00012272,2]
[323262375,1713856255929,-500.0,0.00012272,2]
[323262377,1713856255939,-500.0,0.00012272,2]
[323262379,1713856255948,-1135.23,0.00012272,2]
[323262381,1713856255957,-500.0,0.00012272,2]
[323262383,1713856255967,-1144.65,0.00012272,2]
[323262385,1713856255977,-1273.19,0.00012272,2]
[323262387,1713856255989,-500.0,0.00012272,2]
[323262389,1713856255999,-388.13965421,0.00012272,2]
[323262391,1713856256008,-1766.99,0.00012272,2]
[323262393,1713856256018,-500.0,0.00012272,2]
[323262395,1713856256027,-500.0,0.00012272,2]
[323262397,1713856256035,-1027.33,0.00012272,2]
[323262399,1713856256045,-754.11,0.00012272,2]
[323262401,1713856256054,-1138.51,0.00012272,2]
[323262403,1713856256064,-500.0,0.00012272,2]
[323262405,1713856256074,-507.61091977,0.00012272,2]
[323262406,1713856256083,-500.0,0.00012272,2]
[323262408,1713856256093,-500.0,0.00012272,2]
[323262411,1713856256103,-361.09978436,0.00012272,2]
[323262413,1713856256112,-500.0,0.00012272,2]
[323262414,1713856256124,-500.0,0.00012272,2]
[323262417,1713856256133,-500.0,0.00012272,2]
[323262418,1713856256142,-500.0,0.00012272,2]
[323262420,1713856256151,-482.55,0.00012272,2]
[323262422,1713856256160,-500.0,0.00012272,2]
[323262424,1713856256174,-500.0,0.00012272,2]
[323262425,1713856256183,-500.0,0.00012272,2]
[323262426,1713856256192,-500.0,0.00012272,2]
[323262427,1713856256201,-500.0,0.00012272,2]
[323262428,1713856256209,-503.65845543,0.00012272,2]
[323262429,1713856256219,-500.0,0.00012272,2]
[323262430,1713856256227,-500.0,0.00012272,2]
[323262431,1713856256236,-507.25648578,0.00012272,2]
[323262433,1713856256246,-500.0,0.00012272,2]
[323262435,1713856256255,-636.82,0.00012272,2]
[323262437,1713856256264,-500.0,0.00012272,2]
[323262439,1713856256273,-500.0,0.00012272,2]
[323262441,1713856256281,-446.57315614,0.00012272,2]
[323262443,1713856256290,-500.0,0.00012272,2]
[323262445,1713856256299,-560.54875748,0.00012272,2]
[323262447,1713856256308,-500.0,0.00012272,2]
[323262449,1713856256317,-500.0,0.00012272,2]
[323262451,1713856256326,-500.0,0.00012272,2]
[323262453,1713856256336,-1174.41,0.00012272,2]
[323262455,1713856256345,-838.4,0.00012272,2]
[323262457,1713856256354,-500.0,0.00012272,2]
[323262459,1713856256364,-667.67,0.00012272,2]
[323262461,1713856256378,-500.0,0.00012272,2]
[323262463,1713856256387,-150.0,0.00012272,2]
[323262465,1713856256396,-503.84055438,0.00012272,2]
[323262467,1713856256404,-500.0,0.00012272,2]
[323262469,1713856256415,-500.0,0.00012272,2]
[323262471,1713856256424,-500.0,0.00012272,2]
[323262473,1713856256433,-500.0,0.00012272,2]
[323262475,1713856256442,-1540.9,0.00012272,2]
[323262477,1713856256451,-500.0,0.00012272,2]
[323262479,1713856256461,-500.0,0.00012272,2]
[323262481,1713856256471,-1296.14,0.00012272,2]
[323262483,1713856256480,-500.0,0.00012272,2]
[323262485,1713856256491,-500.0,0.00012272,2]
[323262487,1713856256501,-500.0,0.00012272,2]
[323262489,1713856256511,-500.0,0.00012272,2]
[323262491,1713856256521,-500.0,0.00012272,2]
[323262493,1713856256532,-500.0,0.00012272,2]
[323262494,1713856256542,-500.0,0.00012272,2]
[323262497,1713856256553,-500.0,0.00012272,2]
[323262499,1713856256563,-850.26,0.00012272,2]
[323262501,1713856256573,-500.0,0.00012272,2]
[323262503,1713856256582,-500.0,0.00012272,2]
[323262505,1713856256593,-500.0,0.00012272,2]
[323262507,1713856256603,-500.0,0.00012272,2]
[323262509,1713856256612,-500.0,0.00012272,2]
[323262511,1713856256624,-500.0,0.00012272,2]
[323262513,1713856256633,-1851.56,0.00012272,2]
[323262515,1713856256643,-1205.19,0.00012272,2]
[323262517,1713856256652,-1151.35,0.00012272,2]
[323262519,1713856256662,-500.0,0.00012272,2]
[323262521,1713856256671,-620.1,0.00012272,2]
[323262523,1713856256681,-1266.18,0.00012272,2]
[323262525,1713856256691,-557.33838369,0.00012272,2]
[323262527,1713856256701,-500.0,0.00012272,2]
[323262529,1713856256711,-500.0,0.00012272,2]
[323262531,1713856256721,-500.0,0.00012272,2]
[323262533,1713856256731,-500.0,0.00012272,2]
[323262535,1713856256741,-500.0,0.00012272,2]
[323262537,1713856256751,-500.0,0.00012272,2]
[323262539,1713856256762,-500.0,0.00012272,2]
[323262541,1713856256772,-500.0,0.00012272,2]
[323262543,1713856256781,-500.0,0.00012272,2]
[323262545,1713856256790,-500.0,0.00012272,2]
[323262547,1713856256800,-500.0,0.00012272,2]
[323262549,1713856256812,-500.0,0.00012272,2]
[323262551,1713856256822,-1374.47,0.00012272,2]
[323262553,1713856256832,-500.0,0.00012272,2]
[323262555,1713856256843,-473.35,0.00012272,2]
[323262557,1713856256853,-172.94322661,0.00012272,2]
[323262559,1713856256862,-500.0,0.00012272,2]
[323262561,1713856256873,-340.70183336,0.00012272,2]
[323262563,1713856256883,-500.0,0.00012272,2]
[323262565,1713856256893,-515.55,0.00012272,2]
[323262567,1713856256903,-150.0,0.00012272,2]
[323262569,1713856256913,-500.0,0.00012272,2]
[323262571,1713856256922,-579.25650279,0.00012272,2]
[323262573,1713856256931,-500.0,0.00012272,2]
[323262575,1713856256940,-500.0,0.00012272,2]
[323262577,1713856256950,-500.0,0.00012272,2]
[323262579,1713856256960,-500.0,0.00012272,2]
[323262581,1713856256969,-500.0,0.00012272,2]
[323262583,1713856256979,-500.0,0.00012272,2]
[323262585,1713856256993,-500.0,0.00012272,2]
[323262587,1713856257002,-500.0,0.00012272,2]
[323262589,1713856257011,-500.0,0.00012272,2]
[323262591,1713856257022,-500.0,0.00012272,2]
[323262594,1713856257031,-681.83,0.00012272,2]
[323262595,1713856257040,-500.0,0.00012272,2]
[323262597,1713856257050,-576.79637816,0.00012272,2]
[323262600,1713856257060,-500.0,0.00012272,2]
[323262602,1713856257070,-500.0,0.00012272,2]
[323262604,1713856257081,-506.44185873,0.00012272,2]
[323262605,1713856257091,-500.0,0.00012272,2]
[323262607,1713856257101,-500.0,0.00012272,2]
[323262610,1713856257110,-503.41244081,0.00012272,2]
[323262611,1713856257120,-500.0,0.00012272,2]
[323262614,1713856257130,-508.289063,0.00012272,2]
[323262615,1713856257140,-507.69948382,0.00012272,2]
[323262617,1713856257150,-1240.77,0.00012272,2]
[323262619,1713856257161,-500.0,0.00012272,2]
[323262621,1713856257172,-504.92681163,0.00012272,2]
[323262623,1713856257181,-500.0,0.00012272,2]
[323262625,1713856257191,-500.0,0.00012272,2]
[323262628,1713856257202,-570.07,0.00012272,2]
[323262629,1713856257212,-507.43989857,0.00012272,2]
[323262632,1713856257221,-500.0,0.00012272,2]
[323262634,1713856257230,-630.94578865,0.00012272,2]
[323262636,1713856257239,-500.0,0.00012272,2]
[323262638,1713856257249,-500.0,0.00012272,2]
[323262640,1713856257258,-500.0,0.00012272,2]
[323262641,1713856257268,-500.0,0.00012272,2]
[323262642,1713856257277,-581.80358373,0.00012272,2]
[323262643,1713856257286,-500.0,0.00012272,2]
[323262644,1713856257295,-500.0,0.00012272,2]
[323262645,1713856257304,-1119.02,0.00012272,2]
[323262646,1713856257313,-526.61567953,0.00012272,2]
[323262647,1713856257322,-500.0,0.00012272,2]
[323262649,1713856257331,-500.0,0.00012272,2]
[323262651,1713856257340,-500.0,0.00012272,2]
[323262653,1713856257349,-500.0,0.00012272,2]
[323262655,1713856257359,-500.0,0.00012272,2]
[323262657,1713856257368,-508.50112775,0.00012272,2]
[323262659,1713856257377,-500.0,0.00012272,2]
[323262661,1713856257386,-500.0,0.00012272,2]
[323262663,1713856257395,-500.0,0.00012272,2]
[323262665,1713856257404,-500.0,0.00012272,2]
[323262667,1713856257413,-500.0,0.00012272,2]
[323262669,1713856257422,-507.72553441,0.00012272,2]
[323262671,1713856257432,-500.0,0.00012272,2]
[323262673,1713856257442,-464.96,0.00012272,2]
[323262675,1713856257452,-500.0,0.00012272,2]
[323262677,1713856257462,-505.04874549,0.00012272,2]
[323262679,1713856257472,-500.0,0.00012272,2]
[323262681,1713856257482,-500.0,0.00012272,2]
[323262683,1713856257492,-500.0,0.00012272,2]
[323262685,1713856257502,-505.43839281,0.00012272,2]
[323262687,1713856257512,-500.0,0.00012272,2]
[323262689,1713856257522,-500.0,0.00012272,2]
[323262691,1713856257532,-500.0,0.00012272,2]
[323262693,1713856257542,-532.95129536,0.00012272,2]
[323262695,1713856257552,-500.0,0.00012272,2]
[323262697,1713856257562,-500.0,0.00012272,2]
[323262699,1713856257572,-500.0,0.00012272,2]
[323262701,1713856257582,-500.0,0.00012272,2]
[323262703,1713856257593,-500.0,0.00012272,2]
[323262705,1713856257604,-500.0,0.00012272,2]
[323262707,1713856257614,-500.0,0.00012272,2]
[323262709,1713856257625,-500.0,0.00012272,2]
[323262711,1713856257636,-170.40447882,0.00012272,2]
[323262713,1713856257647,-178.84100401,0.00012272,2]
[323262715,1713856257657,-501.42621343,0.00012272,2]
[323262717,1713856257667,-500.0,0.00012272,2]
[323262719,1713856257678,-500.0,0.00012272,2]
[323262721,1713856257687,-500.0,0.00012272,2]
[323262723,1713856257696,-500.0,0.00012272,2]
[323262725,1713856257706,-500.0,0.00012272,2]
[323262727,1713856257715,-500.0,0.00012272,2]
[323262729,1713856257724,-500.0,0.00012272,2]
[323262731,1713856257733,-500.0,0.00012272,2]
[323262733,1713856257742,-500.0,0.00012272,2]
[323262735,1713856257752,-500.0,0.00012272,2]
[323262737,1713856257761,-500.0,0.00012272,2]
[323262739,1713856257770,-585.73843904,0.00012272,2]
[323262741,1713856257779,-500.0,0.00012272,2]
[323262743,1713856257789,-500.0,0.00012272,2]
[323262746,1713856257798,-500.0,0.00012272,2]
[323262747,1713856257807,-747.56,0.00012272,2]
[323262748,1713856257816,-500.0,0.00012272,2]
[323262750,1713856257825,-500.0,0.00012272,2]
[323262752,1713856257835,-500.0,0.00012272,2]
[323262753,1713856257844,-500.0,0.00012272,2]
[323262755,1713856257853,-500.0,0.00012272,2]
[323262756,1713856257863,-500.0,0.00012272,2]
[323262758,1713856257873,-500.0,0.00012272,2]
[323262759,1713856257883,-1721.73,0.00012272,2]
[323262761,1713856257893,-500.0,0.00012272,2]
[323262762,1713856257901,-500.0,0.00012272,2]
[323262764,1713856257910,-500.0,0.00012272,2]
[323262765,1713856257919,-500.0,0.00012272,2]
[323262767,1713856257928,-311.24937733,0.00012272,2]
[323262768,1713856257937,-500.0,0.00012272,2]
[323262770,1713856257946,-500.0,0.00012272,2]
[323262772,1713856257956,-500.0,0.00012272,2]
[323262773,1713856257965,-500.0,0.00012272,2]
[323262775,1713856257975,-503.51906711,0.00012272,2]
[323262776,1713856257985,-532.42,0.00012272,2]
[323262778,1713856257997,-500.0,0.00012272,2]
[323262779,1713856258006,-500.0,0.00012272,2]
[323262781,1713856258016,-500.0,0.00012272,2]
[323262783,1713856258026,-861.93,0.00012272,2]
[323262784,1713856258037,-1197.56,0.00012272,2]
[323262786,1713856258046,-500.0,0.00012272,2]
[323262788,1713856258056,-1190.67,0.00012272,2]
[323262789,1713856258066,-500.0,0.00012272,2]
[323262791,1713856258076,-500.0,0.00012272,2]
[323262793,1713856258085,-500.0,0.00012272,2]
[323262794,1713856258094,-506.59525339,0.00012272,2]
[323262796,1713856258104,-500.0,0.00012272,2]
[323262797,1713856258112,-500.0,0.00012272,2]
[323262799,1713856258122,-1137.13,0.00012272,2]
[323262801,1713856258131,-500.0,0.00012272,2]
[323262802,1713856258140,-986.84,0.00012272,2]
[323262817,1713856258325,-500.0,0.00012272,2]
[323262819,1713856258335,-500.0,0.00012272,2]
[323262821,1713856258344,-500.0,0.00012272,2]
[323262823,1713856258353,-408.64273726,0.00012272,2]
[323262825,1713856258362,-500.0,0.00012272,2]
[323262827,1713856258371,-500.0,0.00012272,2]
[323262829,1713856258380,-500.0,0.00012272,2]
[323262831,1713856258389,-500.0,0.00012272,2]
[323262833,1713856258398,-502.54093371,0.00012272,2]
[323262835,1713856258408,-3354.74,0.00012272,2]
[323262837,1713856258417,-4037.05,0.00012272,2]
[323262839,1713856258429,-500.0,0.00012272,2]
[323262840,1713856258438,-500.0,0.00012272,2]
[323262842,1713856258447,-500.0,0.00012272,2]
[323262844,1713856258457,-500.0,0.00012272,2]
[323262845,1713856258467,-500.0,0.00012272,2]
[323262846,1713856258476,-500.0,0.00012272,2]
[323262847,1713856258485,-865.97,0.00012272,2]
[323262848,1713856258495,-783.29,0.00012272,2]
[323262849,1713856258504,-502.57615392,0.00012272,2]
[323262850,1713856258513,-500.0,0.00012272,2]
[323262851,1713856258522,-500.0,0.00012272,2]
[323262852,1713856258531,-500.0,0.00012272,2]
[323262853,1713856258540,-1098.3,0.00012272,2]
[323262854,1713856258549,-500.0,0.00012272,2]
[323262855,1713856258558,-500.0,0.00012272,2]
[323262856,1713856258568,-538.78949948,0.00012272,2]
[323262857,1713856258577,-500.0,0.00012272,2]
[323262858,1713856258586,-500.0,0.00012272,2]
[323262859,1713856258595,-500.0,0.00012272,2]
[323262861,1713856258605,-373.20452222,0.00012272,2]
[323262862,1713856258614,-504.26802248,0.00012272,2]
[323262864,1713856258624,-654.88,0.00012272,2]
[323262866,1713856258633,-500.0,0.00012272,2]
[323262868,1713856258642,-11368.55,0.00012272,2]
[323262870,1713856258652,-621.0,0.00012272,2]
[323262872,1713856258661,-383.42892835,0.00012272,2]
[323262873,1713856258670,-500.0,0.00012272,2]
[323262874,1713856258680,-500.0,0.00012272,2]
[323262875,1713856258689,-500.0,0.00012272,2]
[323262876,1713856258699,-500.0,0.00012272,2]
[323262877,1713856258708,-500.0,0.00012272,2]
[323262878,1713856258717,-500.0,0.00012272,2]
[323262879,1713856258727,-479.54165184,0.00012272,2]
[323262881,1713856258736,-500.0,0.00012272,2]
[323262883,1713856258745,-500.0,0.00012272,2]
[323262885,1713856258754,-569.93,0.00012272,2]
[323262887,1713856258764,-1697.34,0.00012272,2]
[323262889,1713856258773,-500.0,0.00012272,2]
[323262891,1713856258782,-500.0,0.00012272,2]
[323262893,1713856258792,-500.0,0.00012272,2]
[323262895,1713856258801,-500.0,0.00012272,2]
[323262897,1713856258811,-500.0,0.00012272,2]
[323262899,1713856258820,-627.02141159,0.00012272,2]
[323262901,1713856258829,-65400.71,0.00012272,2]
[323262903,1713856258839,-500.0,0.00012272,2]
[323262905,1713856258848,-937.9,0.00012272,2]
[323262907,1713856258858,-500.0,0.00012272,2]
[323262909,1713856258868,-500.0,0.00012272,2]
[323262912,1713856258879,-500.0,0.00012272,2]
[323262914,1713856258889,-500.0,0.00012272,2]
[323262916,1713856258898,-500.0,0.00012272,2]
[323262917,1713856258908,-500.0,0.00012272,2]
[323262919,1713856258917,-6909.02,0.00012272,2]
[323262922,1713856258927,-500.0,0.00012272,2]
[323262924,1713856258937,-500.0,0.00012272,2]
[323262925,1713856258947,-500.0,0.00012272,2]
[323262928,1713856258958,-500.0,0.00012272,2]
[323262930,1713856258967,-544.76,0.00012272,2]
[323262932,1713856258977,-507.19493994,0.00012272,2]
[323262933,1713856258988,-500.0,0.00012272,2]
[323262935,1713856258999,-500.0,0.00012272,2]
[323262938,1713856259009,-500.0,0.00012272,2]
[323262940,1713856259019,-501.67580703,0.00012272,2]
[323262941,1713856259028,-500.0,0.00012272,2]
[323262943,1713856259038,-500.0,0.00012272,2]
[323262945,1713856259048,-502.55950854,0.00012272,2]
[323262948,1713856259057,-420.86711786,0.00012272,2]
[323262950,1713856259069,-502.45791786,0.00012272,2]
[323262952,1713856259079,-500.0,0.00012272,2]
[323262954,1713856259089,-500.0,0.00012272,2]
[323262956,1713856259098,-503.51455305,0.00012272,2]
[323262958,1713856259108,-500.0,0.00012272,2]
[323262960,1713856259117,-500.0,0.00012272,2]
[323262962,1713856259128,-500.0,0.00012272,2]
[323262964,1713856259137,-1136.66,0.00012272,2]
[323262965,1713856259147,-500.0,0.00012272,2]
[323262968,1713856259156,-7581.25,0.00012272,2]
[323262969,1713856259166,-500.0,0.00012272,2]
[323262971,1713856259175,-1176.56,0.00012272,2]
[323262973,1713856259185,-155.51703767,0.00012272,2]
[323262975,1713856259195,-500.0,0.00012272,2]
[323262977,1713856259204,-500.0,0.00012272,2]
[323262979,1713856259213,-500.0,0.00012272,2]
[323262981,1713856259222,-500.0,0.00012272,2]
[323262983,1713856259232,-500.0,0.00012272,2]
[323262986,1713856259241,-2625.69,0.00012272,2]
[323262988,1713856259250,-503.79223393,0.00012272,2]
[323262989,1713856259259,-500.0,0.00012272,2]
[323262991,1713856259268,-500.0,0.00012272,2]
[323262993,1713856259278,-500.0,0.00012272,2]
[323262996,1713856259287,-500.0,0.00012272,2]
[323262998,1713856259296,-670.43,0.00012272,2]
[323263000,1713856259306,-500.0,0.00012272,2]
[323263002,1713856259315,-500.0,0.00012272,2]
[323263004,1713856259324,-4093.31,0.00012272,2]
[323263006,1713856259333,-1075.83,0.00012272,2]
[323263008,1713856259342,-500.0,0.00012272,2]
[323263010,1713856259352,-3326.69,0.00012272,2]
[323263012,1713856259361,-500.0,0.00012272,2]
[323263014,1713856259370,-584.48273052,0.00012272,2]
[323263016,1713856259380,-500.0,0.00012272,2]
[323263018,1713856259389,-176.58699204,0.00012272,2]
[323263020,1713856259399,-658.23,0.00012272,2]
[323263022,1713856259408,-365.19834996,0.00012272,2]
[323263024,1713856259417,-500.0,0.00012272,2]
[323263026,1713856259426,-10849.65,0.00012272,2]
[323263028,1713856259435,-500.0,0.00012272,2]
[323263030,1713856259445,-500.0,0.00012272,2]
[323263032,1713856259454,-500.0,0.00012272,2]
[323263034,1713856259463,-382.95359494,0.00012272,2]
[323263036,1713856259472,-500.0,0.00012272,2]
[323263038,1713856259482,-281.12441116,0.00012272,2]
[323263040,1713856259491,-500.0,0.00012272,2]
[323263042,1713856259501,-500.0,0.00012272,2]
[323263044,1713856259510,-346.09231704,0.00012272,2]
[323263046,1713856259519,-1933.92,0.00012272,2]
[323263048,1713856259528,-500.0,0.00012272,2]
[323263050,1713856259537,-400.72,0.00012272,2]
[323263052,1713856259546,-500.0,0.00012272,2]
[323263054,1713856259555,-877.56,0.00012272,2]
[323263056,1713856259565,-962.26,0.00012272,2]
[323263058,1713856259574,-500.0,0.00012272,2]
[323263060,1713856259583,-500.0,0.00012272,2]
[323263062,1713856259593,-515.79278743,0.00012272,2]
[323263064,1713856259602,-500.0,0.00012272,2]
[323263066,1713856259611,-500.0,0.00012272,2]
[323263068,1713856259620,-2774.94,0.00012272,2]
[323263070,1713856259630,-500.0,0.00012272,2]
[323263072,1713856259639,-500.0,0.00012272,2]
[323263074,1713856259648,-500.0,0.00012272,2]
[323263076,1713856259657,-844.27,0.00012272,2]
[323263078,1713856259667,-500.0,0.00012272,2]
[323263080,1713856259676,-1708.63,0.00012272,2]
[323263082,1713856259685,-500.0,0.00012272,2]
[323263084,1713856259694,-4479.55,0.00012272,2]
[323263086,1713856259704,-500.0,0.00012272,2]
[323263088,1713856259713,-500.0,0.00012272,2]
[323263090,1713856259723,-500.0,0.00012272,2]
[323263092,1713856259733,-644.12,0.00012272,2]
[323263094,1713856259742,-500.0,0.00012272,2]
[323263096,1713856259751,-628.21453734,0.00012272,2]
[323263098,1713856259761,-500.0,0.00012272,2]
[323263100,1713856259771,-805.4,0.00012272,2]
[323263102,1713856259781,-500.0,0.00012272,2]
[323263103,1713856259790,-500.0,0.00012272,2]
[323263104,1713856259800,-1316.39,0.00012272,2]
[323263105,1713856259809,-1012.28,0.00012272,2]
[323263106,1713856259819,-500.0,0.00012272,2]
[323263107,1713856259829,-500.0,0.00012272,2]
[323263108,1713856259838,-500.0,0.00012272,2]
[323263109,1713856259849,-791.95,0.00012272,2]
[323263110,1713856259859,-648.8,0.00012272,2]
[323263111,1713856259868,-597.69467818,0.00012272,2]
[323263112,1713856259878,-500.0,0.00012272,2]
[323263113,1713856259887,-500.0,0.00012272,2]
[323263114,1713856259897,-2919.11,0.00012272,2]
[323263115,1713856259906,-500.0,0.00012272,2]
[323263116,1713856259915,-500.0,0.00012272,2]
[323263117,1713856259925,-500.0,0.00012272,2]
[323263118,1713856259934,-500.0,0.00012272,2]
[323263119,1713856259944,-500.0,0.00012272,2]
[323263120,1713856259953,-500.0,0.00012272,2]
[323263121,1713856259964,-4725.17,0.00012272,2]
[323263122,1713856259973,-500.0,0.00012272,2]
[323263123,1713856259983,-500.0,0.00012272,2]
[323263124,1713856259995,-500.0,0.00012272,2]
[323263125,1713856260005,-2547.1,0.00012272,2]
[323263126,1713856260014,-648.4697,0.00012272,2]
[323263127,1713856260024,-500.0,0.00012272,2]
[323263128,1713856260035,-1018.31994187,0.00012272,2]
[323263129,1713856260045,-584.13801515,0.00012272,2]
[323263130,1713856260054,-500.0,0.00012272,2]
[323263131,1713856260065,-500.0,0.00012272,2]
[323263132,1713856260075,-501.50594883,0.00012272,2]
[323263133,1713856260085,-500.0,0.00012272,2]
[323263134,1713856260095,-500.0,0.00012272,2]
[323263135,1713856260105,-501.80297236,0.00012272,2]
[323263136,1713856260115,-3732.64,0.00012272,2]
[323263137,1713856260125,-617.1,0.00012272,2]
[323263138,1713856260135,-12133.16,0.00012272,2]
[323263139,1713856260144,-500.0,0.00012272,2]
[323263140,1713856260155,-500.0,0.00012272,2]
[323263141,1713856260165,-500.0,0.00012272,2]
[323263142,1713856260175,-632.62,0.00012272,2]
[323263143,1713856260185,-500.0,0.00012272,2]
[323263144,1713856260195,-500.0,0.00012272,2]
[323263145,1713856260204,-500.0,0.00012272,2]
[323263146,1713856260214,-502.79267952,0.00012272,2]
[323263147,1713856260223,-500.0,0.00012272,2]
[323263148,1713856260233,-500.0,0.00012272,2]
[323263149,1713856260242,-501.45294476,0.00012272,2]
[323263150,1713856260251,-1973.57,0.00012272,2]
[323263151,1713856260262,-500.0,0.00012272,2]
[323263152,1713856260271,-500.0,0.00012272,2]
[323263153,1713856260281,-500.0,0.00012272,2]
[323263154,1713856260291,-500.0,0.00012272,2]
[323263155,1713856260300,-626.27,0.00012272,2]
[323263156,1713856260310,-628.77,0.00012272,2]
[323263157,1713856260319,-500.0,0.00012272,2]
[323263158,1713856260329,-500.0,0.00012272,2]
[323263159,1713856260339,-648.37,0.00012272,2]
[323263160,1713856260348,-500.0,0.00012272,2]
[323263161,1713856260358,-500.0,0.00012272,2]
[323263162,1713856260368,-500.0,0.00012272,2]
[323263163,1713856260378,-1001.42,0.00012272,2]
[323263164,1713856260388,-500.0,0.00012272,2]
[323263165,1713856260397,-1347.89,0.00012272,2]
[323263166,1713856260406,-506.01837718,0.00012272,2]
[323263167,1713856260416,-4481.21,0.00012272,2]
[323263168,1713856260425,-500.0,0.00012272,2]
[323263169,1713856260435,-656.81,0.00012272,2]
[323263170,1713856260444,-396.20379576,0.00012272,2]
[323263171,1713856260453,-500.0,0.00012272,2]
[323263172,1713856260463,-1514.94,0.00012272,2]
[323263173,1713856260472,-500.0,0.00012272,2]
[323263174,1713856260482,-500.0,0.00012272,2]
[323263175,1713856260491,-31555.6,0.00012272,2]
[323263176,1713856260500,-628.79,0.00012272,2]
[323263177,1713856260510,-627.34,0.00012272,2]
[323263178,1713856260519,-500.0,0.00012272,2]
[323263179,1713856260528,-500.0,0.00012272,2]
[323263180,1713856260538,-500.0,0.00012272,2]
[323263182,1713856260547,-500.0,0.00012272,2]
[323263184,1713856260556,-500.0,0.00012272,2]
[323263186,1713856260565,-500.0,0.00012273,2]
[323263188,1713856260575,-500.0,0.00012273,2]
[323263190,1713856260584,-500.0,0.00012273,2]
[323263192,1713856260594,-500.0,0.00012273,2]
[323263194,1713856260603,-500.0,0.00012273,2]
[323263196,1713856260612,-500.0,0.00012273,2]
[323263198,1713856260622,-500.0,0.00012273,2]
[323263200,1713856260630,-500.0,0.00012273,2]
[323263202,1713856260639,-542.31368361,0.00012273,2]
[323263204,1713856260649,-500.0,0.00012273,2]
[323263206,1713856260659,-307.71029381,0.00012273,2]
[323263214,1713856260724,-500.0,0.00012273,2]
[323263216,1713856260734,-500.0,0.00012273,2]
[323263218,1713856260743,-256.99500373,0.00012273,2]
[323263220,1713856260751,-500.0,0.00012273,2]
[323263222,1713856260760,-1170.02,0.00012273,2]
[323263224,1713856260770,-500.0,0.00012273,2]
[323263226,1713856260779,-500.0,0.00012273,2]
[323263228,1713856260787,-500.0,0.00012273,2]
[323263230,1713856260796,-567.14021432,0.00012273,2]
[323263232,1713856260806,-500.0,0.00012273,2]
[323263234,1713856260815,-500.0,0.00012273,2]
[323263236,1713856260824,-504.6358551,0.00012273,2]
[323263238,1713856260833,-1175.21,0.00012273,2]
[323263240,1713856260842,-500.0,0.00012273,2]
[323263242,1713856260851,-360.22134142,0.00012273,2]
[323263244,1713856260860,-500.0,0.00012273,2]
[323263246,1713856260869,-500.0,0.00012273,2]
[323263248,1713856260879,-500.0,0.00012273,2]
[323263250,1713856260888,-509.4328049,0.00012273,2]
[323263252,1713856260897,-543.51815004,0.00012273,2]
[323263253,1713856260907,-500.0,0.00012273,2]
[323263254,1713856260916,-500.0,0.00012273,2]
[323263255,1713856260925,-1047.8,0.00012273,2]
[323263256,1713856260935,-500.0,0.00012273,2]